bitfinex-derivatives/quotes_BTCF0:USTF0_20210703
["timestamp","ask_amount","ask_price","bid_price","bid_amount"]
[1625335784358,0.77703214,34655.0,34654.0,0.34501411]
[1625335784709,0.77703214,34655.0,34654.0,0.00478992]
[1625335785108,0.71803214,34655.0,34654.0,0.34501356]
[1625335786110,0.059,34655.0,34654.0,0.00478992]
[1625335787413,0.88405005,34655.0,34654.0,1.19601104]
[1625335787966,0.38905301,34655.0,34654.0,2.21705348]
[1625335788418,0.88421581,34655.0,34654.0,1.19601104]
[1625335788871,0.38905301,34655.0,34654.0,2.21708311]
[1625335789526,0.44805301,34655.0,34654.0,2.21708311]
[1625335789622,1.21447505,34655.0,34654.0,1.19601104]
[1625335790730,0.38941538,34655.0,34654.0,2.21743796]
[1625335790875,0.38941538,34655.0,34654.0,2.50773796]
[1625335791224,0.38941538,34655.0,34654.0,3.69979127]
[1625335791728,0.059,34655.0,34654.0,3.69979127]
[1625335792428,0.38965231,34655.0,34654.0,3.69979127]
[1625335795137,0.88625282,34655.0,34654.0,3.69979127]
[1625335795437,0.55560051,34655.0,34654.0,3.69979127]
[1625335797244,1.21819253,34655.0,34654.0,3.69979127]
[1625335798943,0.88714851,34655.0,34654.0,3.69979127]
[1625335799345,0.55560051,34655.0,34654.0,3.69979127]
[1625335799696,1.21837413,34655.0,34654.0,3.69979127]
[1625335804953,1.27737413,34655.0,34654.0,3.69979127]
[1625335805051,2.27317916,34655.0,34654.0,3.69979127]
[1625335806105,2.27317916,34655.0,34654.0,2.50773796]
[1625335806206,2.27317916,34655.0,34654.0,2.21743796]
[1625335807259,3.43532184,34655.0,34654.0,2.21743796]
[1625335808060,3.37632184,34655.0,34654.0,2.21743796]
[1625335808310,2.21417916,34655.0,34654.0,2.21743796]
[1625335808663,2.27317916,34655.0,34654.0,2.21743796]
[1625335808763,3.37689485,34655.0,34654.0,2.21743796]
[1625335809563,3.43589485,34655.0,34654.0,2.21743796]
[1625335813772,3.37689485,34655.0,34654.0,2.21743796]
[1625335813922,4.70718449,34655.0,34654.0,2.21743796]
[1625335814023,4.70718449,34655.0,34654.0,2.46699796]
[1625335814122,4.76618449,34655.0,34654.0,2.46699796]
[1625335814225,3.37689485,34655.0,34654.0,2.46699796]
[1625335814323,3.43589485,34655.0,34654.0,2.46699796]
[1625335814473,3.37689485,34655.0,34654.0,2.46699796]
[1625335814573,3.43589485,34655.0,34654.0,2.46699796]
[1625335814824,3.37689485,34655.0,34654.0,2.46699796]
[1625335814974,4.70783467,34655.0,34654.0,2.46699796]
[1625335815377,3.37689485,34655.0,34654.0,3.6614039]
[1625335817987,3.37689485,34655.0,34654.0,5.02712493]
[1625335823300,4.71159699,34655.0,34654.0,5.02712493]
[1625335823399,4.77059699,34655.0,34654.0,5.02712493]
[1625335823499,4.71159699,34655.0,34654.0,5.02712493]
[1625335823702,4.77059699,34655.0,34654.0,5.02712493]
[1625335823801,4.71159699,34655.0,34654.0,5.02712493]
[1625335824399,4.77059699,34655.0,34654.0,5.02712493]
[1625335824549,4.71159699,34655.0,34654.0,5.02712493]
[1625335824699,4.77059699,34655.0,34654.0,5.02712493]
[1625335824800,4.71159699,34655.0,34654.0,5.02712493]
[1625335825552,4.77059699,34655.0,34654.0,5.02712493]
[1625335825651,4.71159699,34655.0,34654.0,5.02712493]
[1625335826052,4.77059699,34655.0,34654.0,5.02712493]
[1625335826152,4.71159699,34655.0,34654.0,5.02712493]
[1625335826352,4.77059699,34655.0,34654.0,5.02712493]
[1625335826452,4.71159699,34655.0,34654.0,5.02712493]
[1625335826653,4.77059699,34655.0,34654.0,5.02712493]
[1625335828607,4.71159699,34655.0,34654.0,5.02712493]
[1625335828810,4.65259699,34655.0,34654.0,5.08612493]
[1625335829005,2.15517916,34655.0,34654.0,6.6237973]
[1625335829405,0.8306239,34655.0,34654.0,6.6237973]
[1625335829504,0.8306239,34655.0,34654.0,7.10494818]
[1625335829857,0.33402339,34655.0,34654.0,7.10494818]
[1625335830409,0.57413122,34656.0,34654.0,7.10494818]
[1625335830809,0.57413122,34656.0,34655.0,0.00479493]
[1625335831015,0.57413122,34656.0,34655.0,0.06379493]
[1625335831159,0.57413122,34656.0,34655.0,6.38268631]
[1625335832264,0.33355578,34656.0,34655.0,6.38268631]
[1625335832512,0.83350291,34657.0,34655.0,6.38268631]
[1625335832863,0.83350291,34657.0,34656.0,6.31692712]
[1625335832964,0.83350291,34657.0,34656.0,6.38072234]
[1625335833514,0.83350291,34657.0,34656.0,6.62129778]
[1625335833865,0.33325258,34657.0,34656.0,6.62129778]
[1625335835168,0.83292662,34657.0,34656.0,6.62129778]
[1625335835519,0.83324418,34659.0,34656.0,6.62129778]
[1625335835920,0.83324418,34659.0,34657.0,0.00479495]
[1625335836119,0.83324418,34659.0,34657.0,0.06379495]
[1625335836419,0.83324418,34659.0,34658.0,0.00479495]
[1625335836519,0.83324418,34659.0,34658.0,0.06379495]
[1625335836623,0.33333099,34659.0,34658.0,6.37672294]
[1625335837222,0.33329045,34660.0,34658.0,6.37672294]
[1625335837472,0.33329045,34660.0,34659.0,0.00479487]
[1625335837571,0.33329045,34660.0,34659.0,0.06379487]
[1625335837772,0.33329045,34660.0,34659.0,6.37645695]
[1625335838475,0.39229045,34660.0,34659.0,6.37645695]
[1625335838574,0.33329045,34660.0,34659.0,4.84094455]
[1625335839426,0.39229045,34660.0,34659.0,4.84094455]
[1625335839979,0.89265771,34660.0,34659.0,4.84094455]
[1625335840077,0.83365771,34660.0,34659.0,4.84094455]
[1625335840579,0.33329045,34660.0,34659.0,4.84094455]
[1625335840830,0.39229045,34660.0,34659.0,4.84094455]
[1625335841281,0.059,34660.0,34659.0,6.37549993]
[1625335842283,0.33374379,34661.0,34659.0,6.37549993]
[1625335842432,0.33374379,34661.0,34659.0,6.43449993]
[1625335842682,1.0753138,34662.0,34660.0,0.00479452]
[1625335842782,1.0753138,34662.0,34660.0,0.12279452]
[1625335843033,3.46e-05,34663.0,34660.0,0.62279452]
[1625335843132,3.46e-05,34663.0,34661.0,0.00479442]
[1625335843233,3.46e-05,34663.0,34661.0,0.26965442]
[1625335843335,0.5013951,34664.0,34662.0,0.5]
[1625335843535,9.51e-05,34664.0,34663.0,0.48115088]
[1625335843786,9.51e-05,34664.0,34663.0,0.54494519]
[1625335843986,1.0024154,34668.0,34663.0,4.12286834]
[1625335844236,1.0024154,34668.0,34664.0,0.00479445]
[1625335844390,1.0024154,34668.0,34664.0,0.06379445]
[1625335844540,1.0024345,34667.0,34666.0,1.19267328]
[1625335844639,1.0024345,34667.0,34666.0,1.25167328]
[1625335845041,1.0024345,34667.0,34666.0,1.25646762]
[1625335845143,1.00255822,34668.0,34666.0,2.27873873]
[1625335845548,1.00255822,34668.0,34667.0,0.00479434]
[1625335845649,1.00255822,34668.0,34667.0,1.26730637]
[1625335845750,1.00255822,34668.0,34667.0,1.32630637]
[1625335845850,1.00255822,34668.0,34667.0,1.38530637]
[1625335846501,0.24057544,34669.0,34667.0,3.94000673]
[1625335846752,0.24057544,34669.0,34668.0,0.00479412]
[1625335846852,0.24057544,34669.0,34668.0,0.27943412]
[1625335846955,0.24057544,34669.0,34668.0,2.55245333]
[1625335847754,0.24057544,34669.0,34668.0,2.49345333]
[1625335849510,0.4077848,34669.0,34668.0,2.49345333]
[1625335849608,0.4077848,34669.0,34668.0,2.43445333]
[1625335849859,0.4077848,34669.0,34668.0,2.49345333]
[1625335850010,0.24057544,34669.0,34668.0,1.30128914]
[1625335851862,0.40744521,34669.0,34668.0,1.30128914]
[1625335852366,0.24057544,34669.0,34668.0,1.30128914]
[1625335853113,0.40744103,34669.0,34668.0,1.30128914]
[1625335853613,0.40744103,34669.0,34668.0,1.24228914]
[1625335854217,0.24057544,34669.0,34668.0,1.24228914]
[1625335854568,0.24057544,34669.0,34668.0,0.22043412]
[1625335855069,0.24057544,34669.0,34668.0,0.27943412]
[1625335855217,0.24057544,34669.0,34668.0,0.22043412]
[1625335855467,0.24057544,34669.0,34667.0,1.26113623]
[1625335855972,1.23788872,34669.0,34668.0,0.17009553]
[1625335856475,1.23788872,34669.0,34668.0,0.17489178]
[1625335856576,1.23788872,34669.0,34668.0,0.23389178]
[1625335856726,1.23788872,34669.0,34668.0,0.17489178]
[1625335857026,1.23788872,34669.0,34668.0,0.45039178]
[1625335857127,0.24057544,34669.0,34668.0,0.28029625]
[1625335858128,0.40711824,34669.0,34668.0,1.30068531]
[1625335858230,0.40711824,34669.0,34668.0,1.24168531]
[1625335858479,0.40711824,34669.0,34668.0,0.28029625]
[1625335858480,0.24057544,34669.0,34668.0,0.28029625]
[1625335858830,0.40712002,34669.0,34668.0,1.30052873]
[1625335859482,0.24057544,34669.0,34668.0,1.30052873]
[1625335859582,0.24057544,34669.0,34668.0,0.28029625]
[1625335859886,0.24057544,34669.0,34668.0,1.30051984]
[1625335862789,0.24057544,34669.0,34668.0,1.24151984]
[1625335862890,0.29957544,34669.0,34668.0,1.02501984]
[1625335863190,0.35857544,34669.0,34668.0,1.02501984]
[1625335863794,3.85369937,34669.0,34661.0,1.02010956]
[1625335863900,3.85369937,34669.0,34664.0,0.17001826]
[1625335864041,3.86731627,34669.0,34664.0,0.17001826]
[1625335864193,0.01363254,34668.0,34664.0,0.17001826]
[1625335864299,0.07263254,34668.0,34664.0,0.17001826]
[1625335864395,1.16407499,34665.0,34660.0,0.17003574]
[1625335864494,1.48397499,34665.0,34660.0,0.17003574]
[1625335864745,1.48397499,34665.0,34661.0,0.00479101]
[1625335864946,1.16364508,34663.0,34661.0,0.00479101]
[1625335865145,1.28164508,34663.0,34661.0,0.00479101]
[1625335865248,1.28164508,34663.0,34660.0,0.00479118]
[1625335865600,1.2225169,34662.0,34660.0,0.00479118]
[1625335865699,0.72172632,34661.0,34660.0,0.00479118]
[1625335865799,0.72172632,34661.0,34659.0,0.00479118]
[1625335865899,0.78072632,34661.0,34659.0,0.00479118]
[1625335866049,0.83972632,34661.0,34660.0,0.00479126]
[1625335866551,2.00232519,34661.0,34660.0,0.00479126]
[1625335866648,2.00232519,34661.0,34659.0,0.00479128]
[1625335866900,2.00232519,34661.0,34658.0,0.00479146]
[1625335867099,2.00232519,34661.0,34660.0,0.00479148]
[1625335867451,2.00232519,34661.0,34658.0,0.00479145]
[1625335867701,0.24057544,34660.0,34658.0,0.00479145]
[1625335867902,0.35857544,34660.0,34658.0,0.00479145]
[1625335868004,0.35857544,34660.0,34657.0,0.17005865]
[1625335868303,0.35857544,34660.0,34653.0,0.9187]
[1625335868304,1.16013998,34659.0,34655.0,0.17008795]
[1625335868502,1.27813998,34659.0,34655.0,0.17008795]
[1625335868752,1.27813998,34659.0,34656.0,0.00479156]
[1625335869253,1.27813998,34659.0,34655.0,0.17008795]
[1625335869755,0.24057544,34656.0,34655.0,0.17008795]
[1625335869856,0.43855544,34656.0,34655.0,0.17008795]
[1625335869956,0.55655544,34656.0,34655.0,0.17008795]
[1625335870108,0.55655544,34656.0,34655.0,0.17487966]
[1625335871409,0.55655544,34656.0,34655.0,0.17008795]
[1625335873760,0.79713088,34656.0,34655.0,0.17008795]
[1625335875716,0.54015088,34656.0,34655.0,0.46817795]
[1625335876215,0.54015088,34656.0,34655.0,0.47296882]
[1625335876366,0.54015088,34656.0,34655.0,0.30288087]
[1625335876769,0.54015088,34656.0,34655.0,1.49346196]
[1625335877819,0.54015088,34656.0,34655.0,1.7340374]
[1625335881136,0.59915088,34656.0,34655.0,1.7340374]
[1625335881279,0.82897088,34656.0,34655.0,1.7340374]
[1625335881579,0.99430363,34656.0,34655.0,0.54345631]
[1625335881679,0.99430363,34656.0,34655.0,0.24536631]
[1625335881931,0.82897088,34656.0,34655.0,0.24536631]
[1625335883084,0.82897088,34656.0,34655.0,0.00479087]
[1625335883235,0.82897088,34656.0,34653.0,0.9187]
[1625335883790,0.24057544,34655.0,34653.0,0.9187]
[1625335883936,0.35857544,34655.0,34654.0,0.17014613]
[1625335884486,0.35857544,34655.0,34654.0,0.17493755]
[1625335884785,0.35857544,34655.0,34654.0,0.17014613]
[1625335885286,0.35857544,34655.0,34653.0,0.9187]
[1625335885387,0.35857544,34655.0,34649.0,1.19104655]
[1625335885489,0.44567544,34655.0,34649.0,1.00304655]
[1625335885688,0.44567544,34655.0,34649.0,0.96324655]
[1625335885788,0.48115088,34650.0,34649.0,0.96324655]
[1625335885990,0.59915088,34650.0,34649.0,0.96324655]
[1625335886188,0.54015088,34650.0,34649.0,0.47264655]
[1625335886339,0.54015088,34650.0,34639.0,1.36132136]
[1625335886588,0.59915088,34650.0,34639.0,1.36132136]
[1625335886690,0.59915088,34650.0,34640.0,0.00479353]
[1625335886947,0.59915088,34650.0,34642.0,0.08509283]
[1625335887091,1.57561359,34647.0,34642.0,0.08509283]
[1625335887289,1.63461359,34647.0,34642.0,0.08509283]
[1625335887692,1.3136517,34646.0,34641.0,0.08509719]
[1625335887792,1.4316517,34646.0,34641.0,0.08509719]
[1625335887941,0.72172632,34642.0,34641.0,0.08509719]
[1625335888042,0.83972632,34642.0,34641.0,0.08509719]
[1625335888293,0.83972632,34642.0,34639.0,0.08501652]
[1625335888645,0.0821585,34640.0,34639.0,0.08501652]
[1625335888745,0.3258685,34640.0,34639.0,0.08501652]
[1625335888844,0.4438685,34640.0,34639.0,0.08501652]
[1625335889093,0.36171,34640.0,34638.0,0.08501657]
[1625335889746,0.44375638,34640.0,34637.0,0.08493219]
[1625335889846,0.24057544,34638.0,34637.0,0.08493219]
[1625335889946,0.29957544,34638.0,34637.0,0.08493219]
[1625335890048,0.35857544,34638.0,34637.0,0.08493219]
[1625335890148,0.29957544,34638.0,34637.0,0.08972753]
[1625335890250,0.35857544,34638.0,34637.0,0.08972753]
[1625335890598,0.29957544,34638.0,34637.0,0.08972753]
[1625335890749,0.29957544,34638.0,34637.0,0.00479534]
[1625335891148,0.29957544,34638.0,34636.0,0.00479506]
[1625335892853,0.08205391,34643.0,34636.0,0.06379506]
[1625335892963,0.08205391,34643.0,34636.0,0.31010506]
[1625335893105,0.14105391,34643.0,34636.0,0.31010506]
[1625335893205,0.08203339,34642.0,34637.0,0.08487507]
[1625335893307,0.08203339,34642.0,34637.0,0.14866759]
[1625335893510,0.08203339,34642.0,34637.0,0.20766759]
[1625335893611,0.08203339,34642.0,34638.0,0.00479215]
[1625335893706,0.08203339,34642.0,34638.0,0.12279215]
[1625335893859,1.31007814,34649.0,34641.0,0.72172632]
[1625335893957,0.24057544,34650.0,34641.0,0.72172632]
[1625335894058,0.24057544,34650.0,34641.0,0.78072632]
[1625335894157,0.24057544,34650.0,34641.0,0.83972632]
[1625335894411,0.24057544,34650.0,34642.0,0.00479189]
[1625335894509,0.24057544,34650.0,34642.0,0.12279189]
[1625335894607,0.24057544,34650.0,34647.0,0.0848248]
[1625335894708,0.24057544,34650.0,34647.0,0.3961448]
[1625335894858,0.24057544,34650.0,34647.0,0.4551448]
[1625335894960,0.24057544,34650.0,34648.0,0.08961604]
[1625335895510,0.24057544,34650.0,34648.0,0.08482419]
[1625335895812,0.24057544,34650.0,34649.0,0.00479177]
[1625335895962,0.24057544,34650.0,34649.0,0.48594265]
[1625335896565,0.24057544,34650.0,34649.0,0.48115088]
[1625335897116,0.29957544,34650.0,34649.0,0.48115088]
[1625335897315,0.24057544,34650.0,34649.0,0.48115088]
[1625335897518,0.29957544,34650.0,34649.0,0.48115088]
[1625335897618,0.24057544,34650.0,34649.0,0.48594271]
[1625335897917,0.24057544,34650.0,34649.0,0.48115088]
[1625335898169,0.29957544,34650.0,34649.0,0.48115088]
[1625335898318,0.24057544,34650.0,34649.0,0.48115088]
[1625335898468,0.29957544,34650.0,34649.0,0.48115088]
[1625335898568,0.24057544,34650.0,34649.0,0.48115088]
[1625335898671,0.29957544,34650.0,34649.0,0.48115088]
[1625335898920,0.35857544,34650.0,34649.0,0.48115088]
[1625335899471,0.67387544,34650.0,34645.0,0.08481609]
[1625335899622,0.75601661,34650.0,34644.0,0.08481159]
[1625335899871,0.24057544,34645.0,34644.0,0.08481159]
[1625335899971,0.29957544,34645.0,34644.0,0.08481159]
[1625335900072,0.29957544,34645.0,34643.0,0.08481338]
[1625335900171,0.35857544,34645.0,34643.0,0.08481338]
[1625335900575,0.44059266,34645.0,34641.0,0.48115088]
[1625335901374,0.08198198,34644.0,34641.0,0.48115088]
[1625335901523,0.19998198,34644.0,34641.0,0.48115088]
[1625335901972,0.52962544,34642.0,34641.0,0.24057544]
[1625335902074,0.58862544,34642.0,34641.0,0.24057544]
[1625335902174,0.58862544,34642.0,34637.0,0.08479136]
[1625335902474,0.58862544,34642.0,34638.0,0.0047932]
[1625335902675,0.58862544,34642.0,34637.0,0.08479136]
[1625335902778,0.58862544,34642.0,34636.0,0.32536034]
[1625335902977,0.58862544,34642.0,34638.0,0.00479327]
[1625335903228,0.58862544,34642.0,34637.0,0.00479327]
[1625335903878,0.48115088,34638.0,34637.0,0.00479327]
[1625335904635,0.48115088,34638.0,34637.0,0.08955961]
[1625335905085,0.48115088,34638.0,34637.0,0.08476634]
[1625335905185,0.48115088,34638.0,34636.0,0.32534356]
[1625335905636,0.48115088,34638.0,34637.0,0.00479331]
[1625335905937,0.48115088,34638.0,34636.0,0.24057544]
[1625335906187,0.48115088,34638.0,34637.0,0.00479329]
[1625335906991,0.48115088,34638.0,34637.0,0.06379329]
[1625335907692,0.48115088,34638.0,34637.0,0.00479329]
[1625335908146,0.48115088,34638.0,34637.0,0.06379329]
[1625335909495,0.48115088,34638.0,34637.0,0.74181747]
[1625335910197,0.48115088,34638.0,34637.0,2.94573124]
[1625335910797,0.24057544,34638.0,34637.0,2.94573124]
[1625335914755,0.24057544,34642.0,34637.0,4.30292258]
[1625335914903,0.29957544,34642.0,34637.0,4.30292258]
[1625335915004,0.29957544,34642.0,34638.0,0.00478886]
[1625335915154,0.29957544,34642.0,34641.0,0.67859349]
[1625335915555,0.29957544,34642.0,34641.0,0.68338227]
[1625335915656,0.29957544,34642.0,34641.0,1.70134854]
[1625335915955,0.29957544,34642.0,34641.0,1.94192398]
[1625335917207,0.29957544,34642.0,34641.0,2.00092398]
[1625335917307,0.29957544,34642.0,34641.0,1.94192398]
[1625335917457,0.29957544,34642.0,34641.0,2.00092398]
[1625335923532,0.29957544,34642.0,34641.0,3.19165415]
[1625335923631,0.29957544,34642.0,34641.0,3.13265415]
[1625335924031,0.29957544,34642.0,34641.0,1.94192398]
[1625335925586,0.29957544,34642.0,34641.0,3.13288983]
[1625335925936,0.29957544,34642.0,34641.0,1.94192398]
[1625335928892,0.29957544,34642.0,34641.0,3.1331441]
[1625335929492,0.29957544,34642.0,34641.0,3.1921441]
[1625335929744,0.29957544,34642.0,34641.0,3.1331441]
[1625335930745,0.29957544,34642.0,34641.0,3.1921441]
[1625335931446,0.29957544,34642.0,34641.0,4.55373099]
[1625335932449,0.29957544,34642.0,34641.0,4.49473099]
[1625335933301,0.29957544,34642.0,34641.0,0.92395771]
[1625335933750,0.29957544,34642.0,34641.0,1.43467294]
[1625335933751,0.79546364,34642.0,34641.0,1.43467294]
[1625335934103,0.38237757,34642.0,34641.0,2.45607819]
[1625335934402,0.29957544,34642.0,34641.0,2.45607819]
[1625335934855,0.795498,34642.0,34641.0,1.43467294]
[1625335935260,0.29957544,34642.0,34641.0,2.4561163]
[1625335935606,0.29957544,34642.0,34641.0,2.5151163]
[1625335936056,0.059,34642.0,34641.0,2.5151163]
[1625335936259,0.059,34642.0,34641.0,5.06872221]
[1625335936458,0.08275844,34645.0,34641.0,5.12772221]
[1625335936709,0.08281314,34648.0,34641.0,5.12772221]
[1625335936960,0.08281314,34648.0,34642.0,0.00478869]
[1625335937058,0.08281314,34648.0,34642.0,0.37177869]
[1625335937159,0.08285949,34649.0,34647.0,3.40469651]
[1625335937308,0.08285949,34649.0,34647.0,3.46369651]
[1625335937457,0.08285949,34649.0,34648.0,0.00478857]
[1625335937608,0.08285949,34649.0,34648.0,0.06378857]
[1625335937709,0.08285949,34649.0,34648.0,3.46973683]
[1625335938013,1.39862364,34651.0,34648.0,3.46973683]
[1625335938014,0.08292401,34650.0,34648.0,3.46973683]
[1625335938113,0.24057544,34649.0,34648.0,3.71031227]
[1625335938660,1.39798094,34649.0,34648.0,1.4964459]
[1625335938760,1.45698094,34649.0,34648.0,1.4374459]
[1625335938910,1.45698094,34649.0,34648.0,1.4964459]
[1625335939211,1.45698094,34649.0,34648.0,1.4374459]
[1625335939311,2.44855323,34649.0,34648.0,1.4374459]
[1625335939412,2.44855323,34649.0,34648.0,0.75625625]
[1625335939863,2.38955323,34649.0,34648.0,0.75625625]
[1625335939962,2.44855323,34649.0,34648.0,0.75625625]
[1625335940063,3.60576523,34649.0,34648.0,0.24536401]
[1625335940716,3.60576523,34649.0,34648.0,0.33057062]
[1625335941164,3.60576523,34649.0,34648.0,0.24536401]
[1625335941265,3.61941144,34649.0,34648.0,0.24536401]
[1625335941365,3.67841144,34649.0,34648.0,0.24536401]
[1625335941766,5.00167728,34649.0,34648.0,0.24536401]
[1625335941966,5.00167728,34649.0,34648.0,0.00478857]
[1625335942067,6.49000122,34649.0,34648.0,0.00478857]
[1625335942419,6.75717122,34649.0,34646.0,0.00479084]
[1625335942568,6.75717122,34649.0,34644.0,0.08526418]
[1625335942869,4.63315569,34647.0,34645.0,0.00479082]
[1625335942968,4.75115569,34647.0,34645.0,0.00479082]
[1625335943119,0.01364489,34646.0,34645.0,0.00479082]
[1625335943320,4.70692467,34646.0,34645.0,0.00479082]
[1625335943422,4.69327978,34646.0,34645.0,0.00479082]
[1625335944171,4.94750007,34646.0,34645.0,0.00479082]
[1625335944472,4.93385522,34646.0,34645.0,0.00479082]
[1625335945473,4.93385522,34646.0,34645.0,0.09009824]
[1625335945927,4.93385522,34646.0,34645.0,0.00479082]
[1625335946376,4.93385522,34646.0,34645.0,0.09009926]
[1625335946576,4.9475002,34646.0,34645.0,0.09009926]
[1625335946779,4.9475002,34646.0,34641.0,0.24057544]
[1625335946780,6.43660061,34646.0,34641.0,0.24057544]
[1625335947077,6.43660061,34646.0,34642.0,0.00479128]
[1625335947177,0.01364564,34645.0,34642.0,0.00479128]
[1625335947278,1.48868619,34644.0,34642.0,0.00479128]
[1625335947378,1.60668619,34644.0,34642.0,0.00479128]
[1625335947630,1.60668619,34644.0,34641.0,0.24057544]
[1625335947779,4.13496581,34643.0,34641.0,0.24057544]
[1625335948029,4.25296581,34643.0,34641.0,0.24057544]
[1625335948179,0.24057544,34642.0,34641.0,0.24057544]
[1625335948279,0.35857544,34642.0,34641.0,0.24057544]
[1625335948631,4.49297148,34642.0,34641.0,0.24057544]
[1625335949030,4.49297148,34642.0,34641.0,0.24535946]
[1625335950032,4.49297148,34642.0,34641.0,0.24057544]
[1625335950635,4.49297148,34642.0,34641.0,0.24535959]
[1625335950983,4.43397148,34642.0,34641.0,0.24535959]
[1625335951684,4.43397148,34642.0,34641.0,0.24057544]
[1625335951788,4.67006148,34642.0,34641.0,0.24057544]
[1625335954687,4.43397148,34642.0,34641.0,0.24536118]
[1625335954890,4.37497148,34642.0,34641.0,0.24536118]
[1625335955290,3.05201104,34642.0,34641.0,0.24536118]
[1625335955390,3.11101104,34642.0,34641.0,0.24536118]
[1625335955740,3.11101104,34642.0,34641.0,0.92749605]
[1625335956243,3.11101104,34642.0,34641.0,0.24536118]
[1625335957847,4.43481876,34642.0,34641.0,0.24536118]
[1625335958047,4.43481876,34642.0,34641.0,0.24057544]
[1625335958048,4.49381876,34642.0,34641.0,0.24057544]
[1625335958200,4.43481876,34642.0,34641.0,0.24057544]
[1625335958300,4.49381876,34642.0,34641.0,0.24057544]
[1625335958402,4.43481876,34642.0,34641.0,0.24057544]
[1625335958950,4.49381876,34642.0,34641.0,0.24057544]
[1625335961401,4.49381876,34642.0,34637.0,0.68222491]
[1625335961402,4.49381876,34642.0,34636.0,1.02333737]
[1625335961500,4.57951876,34642.0,34636.0,1.02333737]
[1625335961600,4.59317856,34642.0,34636.0,1.02333737]
[1625335961850,4.57951876,34642.0,34636.0,1.02333737]
[1625335961950,4.57951876,34642.0,34636.0,1.02053737]
[1625335962052,0.44427544,34642.0,34635.0,0.9159]
[1625335962152,0.72172632,34636.0,34635.0,0.9159]
[1625335962252,1.06901632,34636.0,34635.0,0.9159]
[1625335962552,3.54283154,34636.0,34635.0,0.9159]
[1625335963957,3.25454154,34636.0,34635.0,0.92068127]
[1625335964055,3.25454154,34636.0,34635.0,0.97968127]
[1625335964406,0.78072632,34636.0,34635.0,0.97968127]
[1625335964555,0.72172632,34636.0,34635.0,0.97968127]
[1625335964806,0.78072632,34636.0,34635.0,0.92068127]
[1625335964905,1.04655632,34636.0,34635.0,0.92068127]
[1625335965005,1.04655632,34636.0,34635.0,0.9159]
[1625335965209,3.51880331,34636.0,34635.0,0.9159]
[1625335966763,3.51880331,34636.0,34632.0,0.3409427]
[1625335966863,3.51880331,34636.0,16079.0,1.30665134]
[1625335966864,3.51880331,34636.0,34631.0,0.34095105]
[1625335967263,3.51880331,34636.0,34630.0,0.34081888]
[1625335967264,1.14877574,34633.0,34630.0,0.34081888]
[1625335967412,1.26677574,34633.0,34630.0,0.34081888]
[1625335967563,1.26677574,34633.0,34630.0,0.26941888]
[1625335967914,1.14808505,34631.0,34624.0,1.19280178]
[1625335968014,1.20708505,34631.0,34624.0,1.19280178]
[1625335968114,1.26608505,34631.0,34624.0,1.19280178]
[1625335968216,1.26608505,34631.0,34625.0,0.00478182]
[1625335970215,0.48115088,34626.0,34625.0,0.00478182]
[1625335970316,0.54015088,34626.0,34625.0,0.00478182]
[1625335971423,0.54015088,34626.0,34624.0,0.00478236]
[1625335972474,0.48115088,34626.0,34624.0,0.00478236]
[1625335972674,0.54015088,34626.0,34624.0,0.00478236]
[1625335972775,0.54015088,34626.0,34624.0,1.19612907]
[1625335973075,0.54015088,34626.0,34625.0,0.00477759]
[1625335973175,0.54015088,34626.0,34625.0,0.24086759]
[1625335973276,0.48115088,34626.0,34625.0,0.24086759]
[1625335973424,0.54015088,34626.0,34625.0,0.24086759]
[1625335974229,0.48115088,34626.0,34625.0,0.24086759]
[1625335974328,0.54015088,34626.0,34625.0,0.24086759]
[1625335977333,0.48115088,34626.0,34625.0,0.24086759]
[1625335977833,0.54015088,34626.0,34625.0,0.24086759]
[1625335977934,0.54015088,34626.0,34625.0,0.00477759]
[1625335978236,0.91777088,34626.0,34625.0,0.00477759]
[1625335978441,0.91777088,34626.0,34623.0,0.00477612]
[1625335978587,0.83197088,34626.0,34623.0,0.00477612]
[1625335978687,0.77297088,34626.0,34625.0,0.00477612]
[1625335978935,0.77297088,34626.0,34623.0,0.00477612]
[1625335979190,0.77297088,34626.0,34625.0,0.00477608]
[1625335979438,0.77297088,34626.0,34622.0,1.19540396]
[1625335979637,0.83197088,34626.0,34622.0,1.25440396]
[1625335979737,0.83197088,34626.0,34623.0,0.00477606]
[1625335980238,0.24057544,34624.0,34623.0,0.00477606]
[1625335982542,0.24057544,34624.0,34623.0,0.06377606]
[1625335982843,0.24057544,34628.0,34623.0,0.06377606]
[1625335982943,0.24057544,34628.0,34623.0,0.34565606]
[1625335983145,0.24057544,34628.0,34623.0,1.536165]
[1625335983245,0.24057544,34628.0,34624.0,0.00477587]
[1625335983545,0.24057544,34628.0,34624.0,1.19521571]
[1625335983797,0.29957544,34628.0,34624.0,1.19521571]
[1625335984098,0.29957544,34628.0,34620.0,0.29757544]
[1625335984099,0.29957544,34628.0,34625.0,0.0047657]
[1625335984298,0.48115088,34626.0,34625.0,0.0047657]
[1625335984448,0.48115088,34626.0,34623.0,1.19043498]
[1625335984449,0.48115088,34626.0,34624.0,0.00476578]
[1625335984546,0.54015088,34626.0,34624.0,0.00476578]
[1625335984697,0.54015088,34626.0,16104.0,1.11374561]
[1625335984698,0.54015088,34626.0,34619.0,1.19053827]
[1625335984799,0.54015088,34626.0,34619.0,1.24953827]
[1625335984900,0.54015088,34626.0,34619.0,1.19053827]
[1625335985099,0.59915088,34626.0,34620.0,0.00476683]
[1625335985299,1.7492921,34626.0,34620.0,0.00476683]
[1625335985751,1.7492921,34626.0,34617.0,0.00476736]
[1625335985852,1.1486521,34623.0,34617.0,0.00476736]
[1625335985950,1.1486521,34623.0,34612.0,1.19079188]
[1625335986049,1.2666521,34623.0,34612.0,1.24979188]
[1625335986150,1.2666521,34623.0,34613.0,0.00476742]
[1625335986352,0.72172632,34614.0,34613.0,0.06376742]
[1625335986452,1.00990632,34614.0,34613.0,0.06376742]
[1625335988106,0.72172632,34614.0,34613.0,0.06376742]
[1625335989306,0.72172632,34614.0,34613.0,1.2532681]
[1625335990408,0.72172632,34614.0,34613.0,1.3122681]
[1625335990808,0.72172632,34614.0,34613.0,1.2532681]
[1625335991309,2.632e-05,34614.0,34613.0,1.3122681]
[1625335991410,1.14798364,34627.0,34613.0,1.6079981]
[1625335991511,0.059,34626.0,34614.0,0.057]
[1625335991761,0.059,34626.0,34617.0,1.1893195]
[1625335991862,0.059,34626.0,34617.0,1.2483195]
[1625335992112,0.059,34626.0,34619.0,1.24819626]
[1625335992311,0.24057544,34631.0,34625.0,0.72172632]
[1625335992411,0.24057544,34631.0,34625.0,0.94736632]
[1625335992412,0.29957544,34631.0,34625.0,0.94736632]
[1625335992511,0.29957544,34631.0,34625.0,1.00636632]
[1625335992613,0.29957544,34631.0,34626.0,0.0047775]
[1625335992813,0.29957544,34631.0,34626.0,0.0637775]
[1625335992913,0.059,34631.0,34626.0,0.0637775]
[1625335993214,0.98605764,34633.0,34627.0,0.00477711]
[1625335993312,0.98605764,34633.0,34627.0,0.06377711]
[1625335993413,0.98605764,34633.0,34627.0,0.12277711]
[1625335993515,0.9873021,34638.0,34629.0,1.01921873]
[1625335993715,0.9873021,34638.0,34629.0,1.13721873]